[Event "3rd Memorial Warakomska 2019"]
[Site "Suwalki"]
[Date "2019.08.08"]
[Round "5.46"]
[White "Oborski, Artur"]
[Black "Checiak, Krzysztof"]
[Result "1-0"]
[ECO "E12"]
[WhiteElo "1969"]
[BlackElo "2057"]
[Annotator "NA"]
[PlyCount "71"]
[EventDate "2019.08.05"]
[EventType "swiss"]
[EventCountry "POL"]
[SourceTitle "playchess.com"]
[Source "ChessBase"]
[SourceQuality "1"]
[TimeControl "40/5400+30:1800+30"]

1. d4 {[%emt 0:00:00]} Nf6 {[%emt 0:00:00]} 2. c4 {[%emt 0:00:00]} e6 {[%emt 0:01:07]} 3. Nf3 {[%emt 0:00:00]} b6 {[%emt 0:00:32]} 4. a3 {[%emt 0:00:00]} Be7 {[%emt 0:01:40]} 5. d5 {[%emt 0:00:12]} O-O {[%emt 0:01:35]} 6. Nc3 {[%emt 0:00:06]} d6 {[%emt 0:01:34]} 7. e4 {[%emt 0:00:32]} Nbd7 {[%emt 0:00:31]} 8. Nd4 {[%emt 0:07:41]} exd5 {[%emt 0:04:39]} 9. cxd5 {[%emt 0:01:01]} Nb8 {[%emt 0:00:34]} 10. Bd3 {[%emt 0:01:41]} Ng4 {[%emt 0:01:19]} 11. O-O {[%emt 0:01:42]} Bf6 {[%emt 0:00:07]} 12. Be2 {[%emt 0:02:36]} Ne5 {[%emt 0:03:34]} 13. f4 {[%emt 0:01:35]} Ng6 14. Be3 a6 {[%emt 0:08:30]} 15. b4 {[%emt 0:03:36]} a5 {[%emt 0:00:53]} 16. Rc1 {[%emt 0:02:17]} axb4 {[%emt 0:00:33]} 17. axb4 {[%emt 0:00:06]} Re8 {[%emt 0:00:54]} 18. Bd3 {[%emt 0:01:38]} Bb7 {[%emt 0:03:59]} 19. Bb5 {[%emt 0:03:26]} Rf8 {[%emt 0:01:49]} 20. Qd2 {[%emt 0:01:01]} Ne7 {[%emt 0:04:54]} 21. Nf3 {[%emt 0:07:00]} Ng6 {[%emt 0:00:56]} 22. Bd4 {[%emt 0:02:12]} Bxd4+ {[%emt 0:01:04]} 23. Nxd4 {[%emt 0:00:07]} Ne7 {[%emt 0:00:25]} 24. f5 {[%emt 0:02:09]} c5 {[%emt 0:00:32]} 25. dxc6 {[%emt 0:00:18]} Nexc6 {[%emt 0:00:29]} 26. Nxc6 {[%emt 0:00:19]} Bxc6 {[%emt 0:00:21]} 27. f6 {[%emt 0:00:38]} gxf6 {[%emt 0:02:01]} 28. Bxc6 {[%emt 0:00:26]} Nxc6 {[%emt 0:00:35]} 29. Nd5 {[%emt 0:00:05]} Ne5 {[%emt 0:03:48]} 30. Nxf6+ {[%emt 0:00:33]} Kg7 {[%emt 0:00:06]} 31. Qg5+ {[%emt 0:00:12]} Ng6 {[%emt 0:00:21]} 32. Nh5+ {[%emt 0:00:05]} Kh8 {[%emt 0:00:47]} 33. Qh6 {[%emt 0:00:05]} Rg8 {[%emt 0:00:44]} 34. Rxf7 {[%emt 0:00:08]} Nf8 {[%emt 0:00:09]} 35. Nf6 {[%emt 0:00:27]} Rg6 {[%emt 0:01:43]} 36. Rxh7+ {[%emt 0:00:12] Rg8} 1-0

[Event "3rd Memorial Warakomska 2019"]
[Site "Suwalki"]
[Date "2019.08.08"]
[Round "5.48"]
[White "Kokoszczynski, Jan"]
[Black "Nowak, Lukasz"]
[Result "0-1"]
[ECO "E21"]
[WhiteElo "2238"]
[BlackElo "2264"]
[Annotator "NA"]
[PlyCount "96"]
[EventDate "2019.08.05"]
[EventType "swiss"]
[EventCountry "POL"]
[SourceTitle "playchess.com"]
[Source "ChessBase"]
[SourceQuality "1"]
[TimeControl "40/5400+30:1800+30"]

1. d4 {[%emt 0:00:00]} Nf6 {[%emt 0:00:00]} 2. c4 {[%emt 0:00:00]} e6 {[%emt 0:00:00]} 3. Nc3 {[%emt 0:00:07]} Bb4 {[%emt 0:00:05]} 4. Nf3 {[%emt 0:00:59]} b6 {[%emt 0:02:36]} 5. Bd2 {[%emt 0:00:38]} Bb7 {[%emt 0:01:50]} 6. e3 {[%emt 0:00:11]} O-O {[%emt 0:01:16]} 7. Rc1 {[%emt 0:00:42]} d5 {[%emt 0:06:26]} 8. cxd5 {[%emt 0:06:46]} exd5 {[%emt 0:00:20]} 9. Bd3 {[%emt 0:00:11]} a6 {[%emt 0:03:05]} 10. O-O {[%emt 0:03:30]} Bd6 {[%emt 0:02:35]} 11. Ne5 {[%emt 0:03:41]} c5 {[%emt 0:02:36]} 12. Bb1 {[%emt 0:11:39]} Nbd7 {[%emt 0:35:04]} 13. f4 {[%emt 0:05:03]} cxd4 {[%emt 0:09:28]} 14. exd4 {[%emt 0:01:45]} Ne4 {[%emt 0:00:32]} 15. Be1 {[%emt 0:09:20]} Rc8 {[%emt 0:06:35]} 16. Qg4 {[%emt 0:08:15]} Ndf6 {[%emt 0:02:13]} 17. Qh3 {[%emt 0:00:27]} Nxc3 {[%emt 0:03:23]} 18. bxc3 {[%emt 0:08:58]} Ne4 {[%emt 0:00:22]} 19. Rf3 {[%emt 0:09:32]} Rc7 {[%emt 0:04:07]} 20. Re3 {[%emt 0:07:17]} Qc8 {[%emt 0:02:31]} 21. Qf3 {[%emt 0:04:04]} f6 {[%emt 0:02:48]} 22. Ng4 {[%emt 0:01:32]} b5 {[%emt 0:02:53]} 23. Rd1 {[%emt 0:05:05]} Re7 {[%emt 0:01:37]} 24. h4 {[%emt 0:08:22]} Qc7 {[%emt 0:03:46]} 25. g3 {[%emt 0:00:23]} Rfe8 {[%emt 0:01:40]} 26. Kg2 {[%emt 0:01:47]} Bc8 {[%emt 0:00:42]} 27. Nf2 {[%emt 0:00:38]} Qd7 {[%emt 0:01:28]} 28. Rc1 {[%emt 0:02:11]} Nxf2 {[%emt 0:01:58]} 29. Rxe7 {[%emt 0:00:50]} Rxe7 {[%emt 0:00:43]} 30. Bxf2 {[%emt 0:00:24]} Ba3 {[%emt 0:00:23]} 31. Re1 {[%emt 0:00:19]} Rxe1 {[%emt 0:00:47]} 32. Bxe1 {[%emt 0:00:03]} Bf8 {[%emt 0:01:01]} 33. f5 {[%emt 0:00:51]} a5 {[%emt 0:00:37]} 34. Bd2 {[%emt 0:00:22]} Qc6 {[%emt 0:00:25]} 35. Bd3 {[%emt 0:00:35]} b4 {[%emt 0:00:29]} 36. c4 {[%emt 0:00:24]} Bb7 {[%emt 0:00:34]} 37. c5 {[%emt 0:00:08]} Qa4 {[%emt 0:00:28]} 38. Qe2 {[%emt 0:01:22]} Qxa2 {[%emt 0:00:33]} 39. Qe6+ {[%emt 0:00:31]} Kh8 {[%emt 0:00:06]} 40. Qf7 {[%emt 0:00:00]} Qxd2+ {[%emt 0:00:00]} 41. Kh3 {[%emt 0:00:33]} h6 {[%emt 0:15:40]} 42. Qxf8+ {[%emt 0:01:55]} Kh7 {[%emt 0:00:51]} 43. Qf7 {[%emt 0:23:45]} Bc6 {[%emt 0:01:15]} 44. Ba6 {[%emt 0:00:34]} Qe1 {[%emt 0:03:28]} 45. Bc8 {[%emt 0:04:37]} Qh1+ {[%emt 0:03:45]} 46. Kg4 {[%emt 0:00:04]} Qe4+ {[%emt 0:00:16]} 47. Kh3 {[%emt 0:00:10]} Bb5 {[%emt 0:00:24]} 48. Qg6+ Kh8 {[%emt 0:00:20]} 0-1

[Event "3rd Memorial Warakomska 2019"]
[Site "Suwalki"]
[Date "2019.08.09"]
[Round "6.1"]
[White "Markowski, Tomasz"]
[Black "Zakhartsov, Viacheslav V."]
[Result "1-0"]
[ECO "A46"]
[WhiteElo "2537"]
[BlackElo "2518"]
[Annotator "ChessBase"]
[PlyCount "125"]
[EventDate "2019.08.05"]
[EventType "swiss"]
[EventCountry "POL"]
[SourceTitle "playchess.com"]
[Source "ChessBase"]
[SourceQuality "1"]
[TimeControl "40/5400+30:1800+30"]

1. d4 {[%emt 0:00:00]} Nf6 {[%emt 0:00:00]} 2. Nf3 {[%emt 0:00:00]} e6 {[%emt 0:00:00]} 3. e3 {[%emt 0:00:00]} b6 {[%emt 0:00:00]} 4. Bd3 {[%emt 0:00:00]} Bb7 {[%emt 0:00:00]} 5. O-O {[%emt 0:00:00]} Be7 {[%emt 0:00:08]} 6. c4 {[%emt 0:00:00]} O-O {[%emt 0:00:27]} 7. Nc3 {[%emt 0:00:06]} d5 {[%emt 0:00:09]} 8. cxd5 {[%emt 0:00:07]} exd5 {[%emt 0:00:08]} 9. b3 {[%emt 0:00:05]} a6 {[%emt 0:00:45]} 10. Bb2 {[%emt 0:00:10]} Bd6 {[%emt 0:00:28]} 11. Ne5 {[%emt 0:05:23]} c5 {[%emt 0:07:35]} 12. Ne2 {[%emt 0:02:04]} Re8 {[%emt 0:03:48]} 13. Ng3 {[%emt 0:02:00]} cxd4 {[%emt 0:21:56]} 14. exd4 {[%emt 0:04:40]} Nbd7 {[%emt 0:06:17]} 15. Re1 {[%emt 0:06:54]} g6 {[%emt 0:02:27]} 16. Qf3 {[%emt 0:03:57]} Nf8 {[%emt 0:04:09]} 17. Re3 {[%emt 0:08:12]} Ne6 {[%emt 0:03:14]} 18. h4 {[%emt 0:03:03]} Bf8 {[%emt 0:01:45]} 19. Rd1 {[%emt 0:02:04]} Rc8 {[%emt 0:07:59]} 20. Ree1 {[%emt 0:04:39]} Bh6 {[%emt 0:07:27]} 21. Bb1 {[%emt 0:02:13]} Rc7 {[%emt 0:01:39]} 22. a3 {[%emt 0:04:46]} Rc8 {[%emt 0:07:22]} 23. Ne2 {[%emt 0:06:50]} Rc7 {[%emt 0:01:19]} 24. Ng3 {[%emt 0:01:04]} Rc8 {[%emt 0:00:06]} 25. b4 {[%emt 0:00:48]} Rc7 {[%emt 0:04:14]} 26. Bd3 {[%emt 0:03:21]} Nf4 {[%emt 0:01:13]} 27. Bb1 {[%emt 0:01:31]} Ne6 {[%emt 0:00:05]} 28. a4 {[%emt 0:04:48]} Bf8 {[%emt 0:00:55]} 29. b5 {[%emt 0:00:30]} a5 {[%emt 0:02:54]} 30. Bd3 {[%emt 0:00:51]} Bg7 {[%emt 0:02:20]} 31. Bb1 {[%emt 0:09:20]} Bf8 {[%emt 0:03:21]} 32. Rc1 {[%emt 0:00:50]} Rxc1 {[%emt 0:00:22]} 33. Rxc1 {[%emt 0:00:05]} Bg7 {[%emt 0:00:21]} 34. Ne2 {[%emt 0:03:21]} Qe7 {[%emt 0:05:17]} 35. Nc6 {[%emt 0:10:10]} Qd7 {[%emt 0:00:05]} 36. Ba3 {[%emt 0:03:28]} Ne4 {[%emt 0:01:34]} 37. Ba2 {[%emt 0:00:58]} f5 {[%emt 0:03:17]} 38. Qb3 {[%emt 0:01:30]} Nc7 {[%emt 0:01:18]} 39. Nf4 {[%emt 0:00:52]} Nf6 {[%emt 0:02:07]} 40. Ne5 {[%emt 0:00:00]} Qd8 {[%emt 0:00:00]} 41. Qc2 {[%emt 0:05:48]} Na8 {[%emt 0:01:19]} 42. Nc6 {[%emt 0:05:03]} Qd7 {[%emt 0:00:06]} 43. Nd3 {[%emt 0:01:56]} Bh6 {[%emt 0:01:18]} 44. Rd1 {[%emt 0:03:12]} Nc7 {[%emt 0:03:38]} 45. Nde5 {[%emt 0:00:16]} Qg7 {[%emt 0:00:04]} 46. Qd3 {[%emt 0:04:41]} Kh8 {[%emt 0:04:00]} 47. g3 {[%emt 0:01:09]} Ne4 {[%emt 0:01:43]} 48. Kg2 {[%emt 0:00:35]} Nf6 {[%emt 0:00:19]} 49. Qf3 {[%emt 0:00:43]} Ne4 {[%emt 0:00:58]} 50. Bc1 {[%emt 0:00:57]} Bxc1 {[%emt 0:01:49]} 51. Rxc1 {[%emt 0:00:01]} Nf6 {[%emt 0:00:15]} 52. Qa3 {[%emt 0:01:31]} Kg8 {[%emt 0:00:36]} 53. Qd6 {[%emt 0:00:35]} Re6 {[%emt 0:00:04]} 54. Qd8+ {[%emt 0:01:04]} Re8 {[%emt 0:00:02]} 55. Ne7+ {[%emt 0:00:38]} Qxe7 {[%emt 0:00:05]} 56. Qxc7 {[%emt 0:00:02]} Qxc7 {[%emt 0:00:57]} 57. Rxc7 {[%emt 0:00:02]} Ba8 {[%emt 0:00:05]} 58. f3 {[%emt 0:00:42]} Rd8 {[%emt 0:00:13]} 59. Kf2 {[%emt 0:00:29]} Ne8 {[%emt 0:00:34]} 60. Ra7 {[%emt 0:01:03]} Nf6 {[%emt 0:00:08]} 61. Ke3 {[%emt 0:00:43]} Rb8 {[%emt 0:00:14]} 62. g4 {[%emt 0:01:27]} fxg4 63. fxg4 {[%emt 0:00:02]} 1-0

[Event "3rd Memorial Warakomska 2019"]
[Site "Suwalki"]
[Date "2019.08.09"]
[Round "6.2"]
[White "Malakhatko, Vadim"]
[Black "Sadzikowski, Daniel"]
[Result "1/2-1/2"]
[ECO "A20"]
[WhiteElo "2462"]
[BlackElo "2503"]
[Annotator "RC"]
[PlyCount "34"]
[EventDate "2019.08.05"]
[EventType "swiss"]
[EventCountry "POL"]
[SourceTitle "playchess.com"]
[Source "ChessBase"]
[SourceQuality "1"]
[TimeControl "40/5400+30:1800+30"]

1. c4 {[%emt 0:00:00]} e5 {[%emt 0:00:05]} 2. e3 {[%emt 0:00:30]} Nf6 {[%emt 0:00:32]} 3. Nc3 {[%emt 0:00:07]} Nc6 {[%emt 0:00:23]} 4. a3 {[%emt 0:00:32]} d5 {[%emt 0:00:27]} 5. cxd5 {[%emt 0:00:06]} Nxd5 {[%emt 0:00:03]} 6. Qc2 {[%emt 0:00:16]} Nxc3 {[%emt 0:00:11]} 7. bxc3 {[%emt 0:01:46]} Qg5 {[%emt 0:00:08]} 8. Nf3 {[%emt 0:00:54]} Qg6 {[%emt 0:00:28]} 9. Qxg6 {[%emt 0:00:47]} hxg6 {[%emt 0:00:08]} 10. d4 {[%emt 0:00:06]} Bd6 {[%emt 0:03:49]} 11. Rb1 {[%emt 0:03:37]} b6 {[%emt 0:02:49]} 12. Bb5 {[%emt 0:04:31]} Bd7 {[%emt 0:00:08]} 13. Nd2 {[%emt 0:03:17]} Na5 {[%emt 0:13:40]} 14. a4 {[%emt 0:22:11]} f6 {[%emt 0:13:21]} 15. Ke2 {[%emt 0:04:37]} Ke7 {[%emt 0:08:39]} 16. Bxd7 {[%emt 0:01:03]} Kxd7 {[%emt 0:00:03]} 17. h3 {[%emt 0:00:11]} Ke6 {[%emt 0:08:06]} 1/2-1/2

[Event "3rd Memorial Warakomska 2019"]
[Site "Suwalki"]
[Date "2019.08.09"]
[Round "6.3"]
[White "Harsha Bharathakoti"]
[Black "Goluch, Piotr"]
[Result "1-0"]
[ECO "B11"]
[WhiteElo "2486"]
[BlackElo "2386"]
[Annotator "ChessBase"]
[PlyCount "45"]
[EventDate "2019.08.05"]
[EventType "swiss"]
[EventCountry "POL"]
[SourceTitle "playchess.com"]
[Source "ChessBase"]
[SourceQuality "1"]
[TimeControl "40/5400+30:1800+30"]

1. e4 {[%emt 0:03:21]} c6 {[%emt 0:00:00]} 2. Nc3 {[%emt 0:00:21]} d5 {[%emt 0:00:00]} 3. Nf3 {[%emt 0:00:05]} Bg4 {[%emt 0:01:19]} 4. Be2 {[%emt 0:01:27]} e6 {[%emt 0:02:56]} 5. d4 {[%emt 0:00:19]} Nf6 {[%emt 0:00:59]} 6. h3 {[%emt 0:00:06]} Bh5 {[%emt 0:04:47]} 7. e5 {[%emt 0:00:15]} Nfd7 {[%emt 0:03:40]} 8. g4 {[%emt 0:00:05]} Bg6 {[%emt 0:00:04]} 9. h4 {[%emt 0:00:04]} h5 {[%emt 0:10:57]} 10. gxh5 {[%emt 0:00:39]} Bxh5 {[%emt 0:00:04]} 11. Ng5 {[%emt 0:00:18]} Bxe2 {[%emt 0:08:25]} 12. Qxe2 {[%emt 0:00:18]} Be7 {[%emt 0:13:13]} 13. Qf3 {[%emt 0:03:10]} Bxg5 {[%emt 0:00:05]} 14. Bxg5 {[%emt 0:00:50]} Qb6 {[%emt 0:01:26]} 15. O-O-O {[%emt 0:02:52]} Na6 {[%emt 0:06:04]} 16. h5 {[%emt 0:29:53]} c5 {[%emt 0:04:52]} 17. Be3 {[%emt 0:06:03]} Qc6 {[%emt 0:10:21]} 18. Rdg1 {[%emt 0:13:39]} Rh7 {[%emt 0:03:26]} 19. Rh4 {[%emt 0:00:46]} cxd4 {[%emt 0:06:42]} 20. Bxd4 {[%emt 0:02:27]} Ke7 {[%emt 0:00:04]} 21. Rf4 {[%emt 0:08:27]} Rf8 {[%emt 0:00:10]} 22. Rg5 {[%emt 0:00:54]} b6 {[%emt 0:04:00]} 23. Qd3 {[%emt 0:00:23]} 1-0

[Event "3rd Memorial Warakomska 2019"]
[Site "Suwalki"]
[Date "2019.08.09"]
[Round "6.5"]
[White "Dhulipalla Bala Chandra Prasad"]
[Black "Nasuta, Grzegorz"]
[Result "0-1"]
[ECO "A40"]
[WhiteElo "2419"]
[BlackElo "2529"]
[Annotator "ChessBase"]
[PlyCount "90"]
[EventDate "2019.08.05"]
[EventType "swiss"]
[EventCountry "POL"]
[SourceTitle "playchess.com"]
[Source "ChessBase"]
[SourceQuality "1"]
[TimeControl "40/5400+30:1800+30"]

1. d4 {[%emt 0:00:00]} e6 {[%emt 0:00:00]} 2. c4 {[%emt 0:01:21]} b6 {[%emt 0:00:00]} 3. e4 {[%emt 0:03:10]} Bb7 {[%emt 0:00:12]} 4. Bd3 {[%emt 0:00:10]} Nc6 {[%emt 0:00:25]} 5. Nf3 {[%emt 0:03:00]} Nb4 {[%emt 0:00:12]} 6. O-O {[%emt 0:02:21]} Ne7 {[%emt 0:00:31]} 7. d5 {[%emt 0:06:20]} Nxd3 {[%emt 0:08:03]} 8. Qxd3 {[%emt 0:00:19]} Ng6 {[%emt 0:00:05]} 9. e5 {[%emt 0:06:20]} Be7 {[%emt 0:05:18]} 10. Nc3 {[%emt 0:03:09]} O-O {[%emt 0:01:47]} 11. Re1 {[%emt 0:08:13]} d6 {[%emt 0:10:33]} 12. exd6 {[%emt 0:06:31]} Bxd6 {[%emt 0:16:02]} 13. Be3 {[%emt 0:08:35]} exd5 {[%emt 0:04:11]} 14. cxd5 {[%emt 0:01:35]} Qd7 {[%emt 0:08:46]} 15. Rad1 {[%emt 0:04:20]} Rad8 {[%emt 0:03:54]} 16. a3 {[%emt 0:06:13]} h6 {[%emt 0:05:30]} 17. Qc4 {[%emt 0:12:00]} Rfe8 {[%emt 0:11:00]} 18. h3 {[%emt 0:00:15]} a6 {[%emt 0:02:31]} 19. Kh1 {[%emt 0:05:43]} Qf5 {[%emt 0:02:32]} 20. Nd4 {[%emt 0:04:29]} Qh5 {[%emt 0:02:35]} 21. Nc6 {[%emt 0:02:09]} Ne5 {[%emt 0:07:12]} 22. Nxe5 {[%emt 0:03:22]} Qxe5 {[%emt 0:00:06]} 23. g3 {[%emt 0:00:10]} Qf5 {[%emt 0:03:18]} 24. Kg2 {[%emt 0:05:35]} Bc8 {[%emt 0:02:27]} 25. Rh1 {[%emt 0:00:02]} Re7 {[%emt 0:01:11]} 26. Qd3 {[%emt 0:02:36]} Qh5 {[%emt 0:01:09]} 27. Qe2 {[%emt 0:03:02]} Qg6 {[%emt 0:00:34]} 28. Qd3 {[%emt 0:00:43]} Bf5 {[%emt 0:00:18]} 29. Qd2 {[%emt 0:00:05]} Be5 {[%emt 0:01:47]} 30. Bf4 {[%emt 0:01:00]} Bxc3 {[%emt 0:00:59]} 31. Qxc3 {[%emt 0:00:15]} Be4+ {[%emt 0:01:01]} 32. f3 {[%emt 0:00:05]} Bxd5 {[%emt 0:00:02]} 33. Rhe1 {[%emt 0:01:06]} Red7 {[%emt 0:00:21]} 34. Rd3 {[%emt 0:00:53]} c5 {[%emt 0:01:18]} 35. g4 {[%emt 0:01:25]} Bc6 {[%emt 0:01:02]} 36. Rde3 {[%emt 0:00:38]} Rd2+ {[%emt 0:00:33]} 37. Kg3 {[%emt 0:00:07]} Rc2 {[%emt 0:00:21]} 38. Qb3 {[%emt 0:00:08]} Rdd2 {[%emt 0:00:17]} 39. Re8+ {[%emt 0:00:50]} Bxe8 {[%emt 0:00:12]} 40. Rxe8+ {[%emt 0:00:00]} Kh7 {[%emt 0:00:00]} 41. Bxd2 {[%emt 0:01:32]} Rxd2 {[%emt 0:01:53]} 42. Re3 {[%emt 0:03:05]} Qd6+ {[%emt 0:16:49]} 43. f4 {[%emt 0:00:29]} Qd4 {[%emt 0:00:04]} 44. Kf3 {[%emt 0:07:36]} c4 {[%emt 0:01:37]} 45. Qc3 {[%emt 0:00:09]} Qd5+ {[%emt 0:00:04]} 0-1

[Event "3rd Memorial Warakomska 2019"]
[Site "Suwalki"]
[Date "2019.08.09"]
[Round "6.6"]
[White "Hnydiuk, Aleksander"]
[Black "Shyam, Sundar M."]
[Result "1-0"]
[ECO "E69"]
[WhiteElo "2412"]
[BlackElo "2520"]
[Annotator "ChessBase"]
[PlyCount "79"]
[EventDate "2019.08.05"]
[EventType "swiss"]
[EventCountry "POL"]
[SourceTitle "playchess.com"]
[Source "ChessBase"]
[SourceQuality "1"]
[TimeControl "40/5400+30:1800+30"]

1. Nf3 {[%emt 0:03:41]} g6 {[%emt 0:00:26]} 2. c4 {[%emt 0:00:06]} Bg7 {[%emt 0:00:17]} 3. d4 {[%emt 0:00:05]} Nf6 {[%emt 0:00:55]} 4. g3 {[%emt 0:00:09]} O-O {[%emt 0:02:59]} 5. Bg2 {[%emt 0:00:03]} d6 {[%emt 0:00:03]} 6. Nc3 {[%emt 0:00:05]} Nbd7 {[%emt 0:00:03]} 7. O-O {[%emt 0:00:07]} e5 {[%emt 0:00:02]} 8. e4 {[%emt 0:00:09]} c6 {[%emt 0:00:04]} 9. h3 {[%emt 0:00:29]} Qb6 {[%emt 0:00:06]} 10. Re1 {[%emt 0:00:32]} exd4 {[%emt 0:00:05]} 11. Nxd4 {[%emt 0:00:03]} Re8 {[%emt 0:00:03]} 12. Nb3 {[%emt 0:12:16]} Ne5 {[%emt 0:02:25]} 13. Bf1 {[%emt 0:10:45]} Be6 {[%emt 0:00:54]} 14. Be3 {[%emt 0:01:01]} c5 {[%emt 0:10:09]} 15. Nd2 {[%emt 0:09:00]} a6 {[%emt 0:36:50]} 16. Rb1 {[%emt 0:04:50]} Qa5 {[%emt 0:02:48]} 17. a3 {[%emt 0:03:18]} Rac8 {[%emt 0:02:03]} 18. b4 {[%emt 0:15:00]} cxb4 {[%emt 0:01:29]} 19. axb4 {[%emt 0:00:06]} Qd8 {[%emt 0:00:28]} 20. Nd5 {[%emt 0:01:04]} Nfd7 {[%emt 0:00:51]} 21. f4 {[%emt 0:17:17]} Nc6 {[%emt 0:00:27]} 22. Nf3 {[%emt 0:00:58]} a5 {[%emt 0:11:43]} 23. bxa5 {[%emt 0:03:16]} Nxa5 {[%emt 0:00:27]} 24. Nb6 {[%emt 0:07:36]} Rc6 {[%emt 0:00:04]} 25. Nxd7 {[%emt 0:01:24]} Qxd7 {[%emt 0:00:28]} 26. Nd4 {[%emt 0:01:30]} Bxd4 {[%emt 0:00:56]} 27. Bxd4 {[%emt 0:00:17]} Bxh3 {[%emt 0:00:54]} 28. Bc3 {[%emt 0:00:50]} Nxc4 {[%emt 0:03:20]} 29. Qd4 {[%emt 0:01:04]} Ne5 {[%emt 0:00:19]} 30. fxe5 {[%emt 0:00:29]} Rxe5 {[%emt 0:01:03]} 31. Bb5 {[%emt 0:03:26]} Qg4 {[%emt 0:01:47]} 32. Re3 {[%emt 0:00:26]} Rc8 {[%emt 0:03:56]} 33. Be2 {[%emt 0:02:00]} Qg5 {[%emt 0:01:48]} 34. Rb6 {[%emt 0:02:22]} Bf5 {[%emt 0:05:09]} 35. Rxd6 {[%emt 0:00:47]} Bxe4 {[%emt 0:00:01]} 36. Kf2 {[%emt 0:00:54]} Rce8 {[%emt 0:01:40]} 37. Rxe4 {[%emt 0:00:24]} Qf5+ {[%emt 0:00:20]} 38. Bf3 {[%emt 0:00:06]} f6 {[%emt 0:00:14]} 39. Rxe5 {[%emt 0:00:11]} fxe5 {[%emt 0:00:09]} 40. Qd5+ {[%emt 0:00:00]} 1-0

[Event "3rd Memorial Warakomska 2019"]
[Site "Suwalki"]
[Date "2019.08.09"]
[Round "6.7"]
[White "Greenfeld, Alon"]
[Black "Kosakowski, Jakub"]
[Result "1-0"]
[ECO "D72"]
[WhiteElo "2522"]
[BlackElo "2394"]
[Annotator "ChessBase"]
[PlyCount "79"]
[EventDate "2019.08.05"]
[EventType "swiss"]
[EventCountry "POL"]
[SourceTitle "playchess.com"]
[Source "ChessBase"]
[SourceQuality "1"]
[TimeControl "40/5400+30:1800+30"]

1. d4 {[%emt 0:02:09]} Nf6 {[%emt 0:00:00]} 2. c4 {[%emt 0:00:51]} g6 {[%emt 0:00:00]} 3. g3 {[%emt 0:00:35]} Bg7 {[%emt 0:00:15]} 4. Bg2 {[%emt 0:00:14]} d5 {[%emt 0:00:16]} 5. cxd5 {[%emt 0:01:42]} Nxd5 {[%emt 0:01:02]} 6. e4 {[%emt 0:00:38]} Nb6 {[%emt 0:00:24]} 7. Ne2 {[%emt 0:00:26]} c5 {[%emt 0:00:41]} 8. d5 {[%emt 0:01:04]} O-O {[%emt 0:01:54]} 9. O-O {[%emt 0:02:44]} e6 {[%emt 0:01:30]} 10. Nec3 {[%emt 0:01:36]} Na6 {[%emt 0:02:01]} 11. Bf4 {[%emt 0:04:24]} exd5 {[%emt 0:07:30]} 12. exd5 {[%emt 0:00:21]} Bf5 {[%emt 0:03:05]} 13. g4 {[%emt 0:01:18]} Bd7 {[%emt 0:04:29]} 14. Nd2 {[%emt 0:00:36]} Re8 {[%emt 0:18:20]} 15. Nde4 {[%emt 0:04:13]} Nc4 {[%emt 0:01:44]} 16. Bg5 {[%emt 0:02:46]} f6 {[%emt 0:04:58]} 17. Bh4 {[%emt 0:00:32]} g5 {[%emt 0:14:31]} 18. Bg3 {[%emt 0:04:19]} h5 {[%emt 0:00:12]} 19. d6 {[%emt 0:37:05]} h4 {[%emt 0:06:37]} 20. Nd5 {[%emt 0:01:50]} hxg3 {[%emt 0:05:43]} 21. fxg3 {[%emt 0:00:15]} Re6 {[%emt 0:10:34]} 22. Qb3 {[%emt 0:02:38]} b5 {[%emt 0:00:58]} 23. a4 {[%emt 0:07:06]} Rb8 {[%emt 0:02:57]} 24. axb5 {[%emt 0:00:33]} Nxd6 {[%emt 0:03:43]} 25. Rxa6 {[%emt 0:15:06]} Nxe4 {[%emt 0:03:10]} 26. Bxe4 {[%emt 0:00:37]} Rxa6 {[%emt 0:05:23]} 27. Ne7+ Kh8 28. Ng6+ {[%emt 0:03:49]} Kh7 {[%emt 0:00:01]} 29. Ne5+ {[%emt 0:00:30]} f5 {[%emt 0:00:36]} 30. Rxf5 {[%emt 0:00:10]} Rg6 {[%emt 0:01:51]} 31. Rf7 {[%emt 0:00:42]} Bf5 {[%emt 0:00:04]} 32. Rxg7+ {[%emt 0:01:41]} Rxg7 {[%emt 0:00:30]} 33. Bxf5+ {[%emt 0:00:08]} Kh8 {[%emt 0:00:01]} 34. Nc6 {[%emt 0:01:30]} Qd2 {[%emt 0:01:08]} 35. Qe6 {[%emt 0:00:22]} Qc1+ {[%emt 0:00:37]} 36. Kg2 {[%emt 0:00:09]} Qxb2+ {[%emt 0:00:33]} 37. Kh3 {[%emt 0:00:06]} Rbb7 {[%emt 0:00:40]} 38. Qc8+ {[%emt 0:00:59]} Rg8 {[%emt 0:00:14]} 39. Qxb7 {[%emt 0:00:07]} Qg7 {[%emt 0:00:21]} 40. Qxa7 {[%emt 0:00:00]} 1-0

[Event "3rd Memorial Warakomska 2019"]
[Site "Suwalki"]
[Date "2019.08.09"]
[Round "6.8"]
[White "Zakhartsov, Vladimir"]
[Black "Kaczmarek, Aleksander"]
[Result "1-0"]
[ECO "A04"]
[WhiteElo "2493"]
[BlackElo "2389"]
[Annotator "ChessBase"]
[PlyCount "61"]
[EventDate "2019.08.05"]
[EventType "swiss"]
[EventCountry "POL"]
[SourceTitle "playchess.com"]
[Source "ChessBase"]
[SourceQuality "1"]
[TimeControl "40/5400+30:1800+30"]

1. Nf3 {[%emt 0:00:00]} g6 {[%emt 0:00:58]} 2. d4 {[%emt 0:00:00]} Bg7 {[%emt 0:00:16]} 3. e4 {[%emt 0:00:11]} c6 {[%emt 0:01:05]} 4. Nc3 {[%emt 0:00:53]} d5 {[%emt 0:00:42]} 5. h3 {[%emt 0:00:25]} dxe4 {[%emt 0:03:19]} 6. Nxe4 {[%emt 0:00:04]} Nd7 {[%emt 0:00:06]} 7. Bc4 {[%emt 0:02:49]} Ngf6 {[%emt 0:00:22]} 8. Nxf6+ {[%emt 0:02:24]} Nxf6 {[%emt 0:00:09]} 9. c3 {[%emt 0:00:23]} O-O {[%emt 0:00:16]} 10. O-O {[%emt 0:01:37]} a5 {[%emt 0:00:08]} 11. a4 {[%emt 0:00:37]} b6 {[%emt 0:01:08]} 12. Ne5 {[%emt 0:02:20]} Bb7 {[%emt 0:01:02]} 13. Bf4 {[%emt 0:02:38]} Nd5 {[%emt 0:01:39]} 14. Bg3 {[%emt 0:00:17]} Rc8 {[%emt 0:01:10]} 15. Qb3 {[%emt 0:02:36]} e6 {[%emt 0:11:33]} 16. Rad1 {[%emt 0:00:15]} Ba8 {[%emt 0:03:17]} 17. Rfe1 {[%emt 0:01:19]} c5 {[%emt 0:13:37]} 18. Ba6 {[%emt 0:03:42]} Rb8 {[%emt 0:13:40]} 19. c4 {[%emt 0:01:02]} Nc7 {[%emt 0:01:01]} 20. dxc5 {[%emt 0:00:36]} bxc5 {[%emt 0:00:14]} 21. Bb5 {[%emt 0:00:15]} Qg5 {[%emt 0:02:24]} 22. h4 {[%emt 0:00:58]} Qh5 {[%emt 0:00:28]} 23. Nd7 {[%emt 0:00:14]} e5 {[%emt 0:01:29]} 24. Nxb8 {[%emt 0:04:27]} Rxb8 {[%emt 0:01:39]} 25. Qe3 {[%emt 0:00:22]} f5 {[%emt 0:22:46]} 26. Bxe5 {[%emt 0:02:02]} f4 {[%emt 0:01:23]} 27. Bxf4 {[%emt 0:02:01]} Bd4 {[%emt 0:00:34]} 28. Qe2 {[%emt 0:01:18]} Qxh4 {[%emt 0:00:28]} 29. Rxd4 {[%emt 0:00:39]} cxd4 {[%emt 0:01:01]} 30. Bxc7 {[%emt 0:00:08]} Rf8 {[%emt 0:00:29]} 31. Bg3 {[%emt 0:01:34]} 1-0